[Event "Goteborg Open 2024"]
[Site "Goteborgs Schackcentrum, Vegatan 20, Gothenburg, Sweden"]
[Date "2024.08.03"]
[Round "5.19"]
[White "Murugaraja, Yogeshwer"]
[Black "Torres, Lucas"]
[Result "0-1"]
[TimeControl "15 minutes + 5 seconds per move from move one (Round 1 - 4) / 90 minutes + 30 seconds per move from move one (Round 5 - 8)"]
[WhiteFideId "1779389"]
[BlackFideId "1769464"]
[WhiteElo "1628"]
[BlackElo "1861"]

1. c4 {[%clk 01:28:40]} {[%emt 00:02:19]} e5 {[%clk 01:21:22]} {[%emt
00:09:38]} 2. g3 {[%clk 01:28:56]} {[%emt 00:00:14]} Nc6 {[%clk 01:21:46]}
{[%emt 00:00:07]} 3. Bg2 {[%clk 01:29:18]} {[%emt 00:00:08]} Bc5 {[%clk
01:21:54]} {[%emt 00:00:22]} 4. d3 {[%clk 01:29:25]} {[%emt 00:00:23]} d6
{[%clk 01:22:14]} {[%emt 00:00:10]} 5. Nf3 {[%clk 01:29:41]} {[%emt 00:00:14]}
f5 {[%clk 01:22:24]} {[%emt 00:00:19]} 6. O-O {[%clk 01:29:27]} {[%emt
00:00:46]} Nf6 {[%clk 01:22:49]} {[%emt 00:00:04]} 7. Nc3 {[%clk 01:29:35]}
{[%emt 00:00:21]} O-O {[%clk 01:22:40]} {[%emt 00:00:40]} 8. a3 {[%clk
01:29:44]} {[%emt 00:00:21]} a5 {[%clk 01:22:40]} {[%emt 00:00:30]} 9. Qc2
{[%clk 01:27:03]} {[%emt 00:03:11]} h6 {[%clk 01:22:18]} {[%emt 00:00:51]} 10.
b3 {[%clk 01:24:49]} {[%emt 00:02:44]} g5 {[%clk 01:17:13]} {[%emt 00:05:36]}
11. e3 {[%clk 01:21:28]} {[%emt 00:03:50]} Ba7 {[%clk 01:14:27]} {[%emt
00:03:16]} 12. Rd1 {[%clk 01:19:06]} {[%emt 00:02:52]} Qe8 {[%clk 01:12:22]}
{[%emt 00:02:34]} 13. h3 {[%clk 01:16:18]} {[%emt 00:03:19]} Qh5 {[%clk
01:10:39]} {[%emt 00:02:13]} 14. Nh2 {[%clk 01:15:29]} {[%emt 00:01:20]} f4
{[%clk 01:05:05]} {[%emt 00:06:04]} 15. g4 {[%clk 01:12:53]} {[%emt 00:03:05]}
Qg6 {[%clk 00:58:44]} {[%emt 00:06:51]} 16. exf4 {[%clk 01:10:37]} {[%emt
00:02:46]} Nd4 {[%clk 00:55:09]} {[%emt 00:04:06]} 17. Qb2 {[%clk 01:08:26]}
{[%emt 00:02:41]} gxf4 {[%clk 00:54:08]} {[%emt 00:01:31]} 18. Kh1 {[%clk
01:07:14]} {[%emt 00:01:41]} Kh8 {[%clk 00:49:52]} {[%emt 00:04:47]} 19. f3
{[%clk 01:05:19]} {[%emt 00:02:23]} h5 {[%clk 00:39:55]} {[%emt 00:10:29]} 20.
Ne4 {[%clk 01:01:13]} {[%emt 00:04:35]} Nxe4 {[%clk 00:37:30]} {[%emt
00:02:55]} 21. dxe4 {[%clk 01:01:09]} {[%emt 00:00:35]} hxg4 {[%clk 00:37:19]}
{[%emt 00:00:41]} 22. hxg4 {[%clk 01:01:19]} {[%emt 00:00:19]} Rf7 {[%clk
00:36:36]} {[%emt 00:01:13]} 23. Ra2 {[%clk 00:55:18]} {[%emt 00:06:32]} Rh7
{[%clk 00:29:26]} {[%emt 00:07:40]} 24. Rd3 {[%clk 00:53:43]} {[%emt 00:02:04]}
Qf6 {[%clk 00:25:45]} {[%emt 00:04:12]} 25. Qd2 {[%clk 00:51:43]} {[%emt
00:02:28]} Rxh2+ {[%clk 00:23:40]} {[%emt 00:02:36]} 26. Kxh2 {[%clk 00:50:39]}
{[%emt 00:01:35]} Qh4+ {[%clk 00:23:47]} {[%emt 00:00:23]} 27. Kg1 {[%clk
00:49:44]} {[%emt 00:01:24]} Ne2+ {[%clk 00:24:07]} {[%emt 00:00:10]} 28. Kf1
{[%clk 00:49:52]} {[%emt 00:00:23]} Qf2# {[%clk 00:24:35]} {[%emt 00:00:02]}
0-1

[Event "Goteborg Open 2024"]
[Site "Goteborgs Schackcentrum, Vegatan 20, Gothenburg, Sweden"]
[Date "2024.08.03"]
[Round "5.20"]
[White "Olsson, Jonas"]
[Black "Eklund, Rickard"]
[Result "0-1"]
[TimeControl "15 minutes + 5 seconds per move from move one (Round 1 - 4) / 90 minutes + 30 seconds per move from move one (Round 5 - 8)"]
[WhiteFideId "1734415"]
[BlackFideId "1789040"]
[WhiteElo "1741"]
[BlackElo "1595"]

1. e4 {[%clk 01:30:55]} {[%emt 00:00:05]} c5 {[%clk 01:30:50]} {[%emt
00:00:11]} 2. f4 {[%clk 01:31:13]} {[%emt 00:00:11]} d6 {[%clk 01:30:32]}
{[%emt 00:00:49]} 3. Nf3 {[%clk 01:31:28]} {[%emt 00:00:15]} Nc6 {[%clk
01:30:03]} {[%emt 00:00:59]} 4. Bc4 {[%clk 01:30:31]} {[%emt 00:01:26]} e6
{[%clk 01:29:51]} {[%emt 00:00:42]} 5. O-O {[%clk 01:30:25]} {[%emt 00:00:36]}
Nf6 {[%clk 01:29:00]} {[%emt 00:01:21]} 6. Re1 {[%clk 01:30:04]} {[%emt
00:00:51]} Be7 {[%clk 01:28:49]} {[%emt 00:00:42]} 7. d4 {[%clk 01:29:50]}
{[%emt 00:00:43]} cxd4 {[%clk 01:28:08]} {[%emt 00:01:11]} 8. Nxd4 {[%clk
01:29:53]} {[%emt 00:00:25]} O-O {[%clk 01:28:21]} {[%emt 00:00:19]} 9. Nc3
{[%clk 01:29:08]} {[%emt 00:01:15]} a6 {[%clk 01:28:24]} {[%emt 00:00:28]} 10.
a4 {[%clk 01:26:27]} {[%emt 00:03:10]} Qc7 {[%clk 01:27:44]} {[%emt 00:01:10]}
11. Nf3 {[%clk 01:24:18]} {[%emt 00:02:38]} Ng4 {[%clk 01:25:38]} {[%emt
00:02:37]} 12. h3 {[%clk 01:23:14]} {[%emt 00:01:34]} Qb6+ {[%clk 01:24:46]}
{[%emt 00:01:22]} 13. Be3 {[%clk 01:17:20]} {[%emt 00:06:24]} Nxe3 {[%clk
01:23:59]} {[%emt 00:01:17]} 14. Rxe3 {[%clk 01:14:57]} {[%emt 00:02:53]} Qxe3+
{[%clk 01:24:05]} {[%emt 00:00:25]} 15. Kh1 {[%clk 01:13:21]} {[%emt 00:02:04]}
Qxf4 {[%clk 01:22:37]} {[%emt 00:02:00]} 16. Qe2 {[%clk 01:12:03]} {[%emt
00:01:47]} Ne5 {[%clk 01:21:00]} {[%emt 00:02:07]} 17. Rf1 {[%clk 01:08:01]}
{[%emt 00:04:31]} Nxf3 {[%clk 01:20:26]} {[%emt 00:01:05]} 18. Rxf3 {[%clk
01:08:03]} {[%emt 00:00:27]} Qc1+ {[%clk 01:18:38]} {[%emt 00:02:19]} 19. Nd1
{[%clk 01:07:57]} {[%emt 00:00:36]} Qg5 {[%clk 01:17:19]} {[%emt 00:01:49]} 20.
Bd3 {[%clk 01:06:42]} {[%emt 00:01:45]} Qe5 {[%clk 01:14:03]} {[%emt 00:03:47]}
21. c3 {[%clk 01:05:38]} {[%emt 00:01:34]} Bd7 {[%clk 01:10:42]} {[%emt
00:03:51]} 22. Nf2 {[%clk 01:05:19]} {[%emt 00:00:48]} f5 {[%clk 01:09:23]}
{[%emt 00:01:50]} 23. Qe3 {[%clk 01:00:38]} {[%emt 00:05:10]} Bh4 {[%clk
01:05:36]} {[%emt 00:04:16]} 24. g3 {[%emt 00:02:05]} Be7 {[%emt 00:01:01]} 25.
Be2 {[%clk 00:57:32]} {[%emt 00:01:41]} d5 {[%emt 00:07:09]} 26. Qd2 {[%emt
00:03:33]} Bc6 {[%emt 00:01:03]} 27. Kg1 {[%emt 00:00:53]} dxe4 {[%emt
00:01:05]} 28. Qe3 {[%emt 00:01:47]} Bc5 {[%clk 00:57:50]} {[%emt 00:00:02]}
0-1

[Event "Goteborg Open 2024"]
[Site "Goteborgs Schackcentrum, Vegatan 20, Gothenburg, Sweden"]
[Date "2024.08.03"]
[Round "6.1"]
[White "Rasti, Arvin"]
[Black "Kallen, Jonas"]
[Result "1/2-1/2"]
[TimeControl "15 minutes + 5 seconds per move from move one (Round 1 - 4) / 90 minutes + 30 seconds per move from move one (Round 5 - 8)"]
[WhiteTitle "FM"]
[WhiteFideId "1741160"]
[BlackFideId "1712896"]
[WhiteElo "2195"]
[BlackElo "2017"]

1. Nf3 {[%clk 01:30:57]} {[%emt 00:00:03]} Nf6 {[%clk 01:30:49]} {[%emt
00:00:11]} 2. g3 {[%clk 01:31:22]} {[%emt 00:00:06]} g6 {[%clk 01:31:07]}
{[%emt 00:00:12]} 3. Bg2 {[%clk 01:31:47]} {[%emt 00:00:05]} Bg7 {[%clk
01:31:22]} {[%emt 00:00:14]} 4. O-O {[%clk 01:32:11]} {[%emt 00:00:07]} O-O
{[%clk 01:31:39]} {[%emt 00:00:12]} 5. d4 {[%clk 01:32:38]} {[%emt 00:00:05]}
d5 {[%clk 01:31:55]} {[%emt 00:00:13]} 6. c4 {[%clk 01:33:03]} {[%emt
00:00:05]} c6 {[%clk 01:32:13]} {[%emt 00:00:12]} 7. b3 {[%clk 01:33:29]}
{[%emt 00:00:04]} Bf5 {[%clk 01:32:23]} {[%emt 00:00:19]} 8. Bb2 {[%clk
01:33:39]} {[%emt 00:00:20]} Nbd7 {[%clk 01:32:21]} {[%emt 00:00:32]} 9. Nbd2
{[%clk 01:34:01]} {[%emt 00:00:09]} a5 {[%clk 01:32:23]} {[%emt 00:00:30]} 10.
Nh4 {[%clk 01:33:40]} {[%emt 00:00:49]} Be6 {[%clk 01:32:32]} {[%emt 00:00:20]}
11. Qc2 {[%clk 01:33:34]} {[%emt 00:00:36]} a4 {[%clk 01:31:07]} {[%emt
00:01:56]} 12. e3 {[%clk 01:30:15]} {[%emt 00:03:49]} b5 {[%clk 01:29:10]}
{[%emt 00:02:26]} 13. Ba3 {[%clk 01:28:59]} {[%emt 00:01:46]} Re8 {[%clk
01:28:08]} {[%emt 00:01:31]} 14. Bb4 {[%clk 01:22:02]} {[%emt 00:07:28]} Qb6
{[%clk 01:22:42]} {[%emt 00:05:56]} 15. Rab1 {[%clk 01:17:44]} {[%emt
00:04:50]} axb3 {[%clk 01:20:28]} {[%emt 00:02:43]} 16. axb3 {[%clk 01:17:49]}
{[%emt 00:00:24]} Bf8 {[%clk 01:19:50]} {[%emt 00:01:08]} 17. Rfc1 {[%clk
01:17:17]} {[%emt 00:01:03]} Ra6 {[%clk 01:13:29]} {[%emt 00:06:50]} 18. cxb5
{[%clk 01:15:55]} {[%emt 00:01:52]} cxb5 {[%clk 01:13:36]} {[%emt 00:00:24]} 19.
Bf1 {[%clk 01:15:35]} {[%emt 00:00:49]} Rea8 {[%clk 01:07:48]} {[%emt
00:06:18]} 20. Qc7 {[%clk 01:08:03]} {[%emt 00:08:02]} Ne8 {[%clk 00:58:08]}
{[%emt 00:10:10]} 21. Qxb6 {[%clk 01:07:37]} {[%emt 00:00:57]} Rxb6 {[%clk
00:58:25]} {[%emt 00:00:12]} 22. Ra1 {[%clk 01:07:39]} {[%emt 00:00:28]} Rxa1
{[%clk 00:54:28]} {[%emt 00:04:28]} 23. Rxa1 {[%clk 01:06:45]} {[%emt
00:01:23]} Ndf6 {[%clk 00:54:38]} {[%emt 00:00:21]} 24. Bd3 {[%clk 00:57:47]}
{[%emt 00:09:27]} Ne4 {[%clk 00:48:47]} {[%emt 00:06:22]} 25. Nhf3 {[%clk
00:55:33]} {[%emt 00:02:44]} N8d6 {[%clk 00:46:07]} {[%emt 00:03:08]} 26. Bc5
{[%clk 00:52:07]} {[%emt 00:03:57]} Rb7 {[%clk 00:45:25]} {[%emt 00:01:12]} 27.
Ra8 {[%clk 00:49:05]} {[%emt 00:03:33]} f6 {[%clk 00:41:46]} {[%emt 00:04:08]}
28. b4 {[%clk 00:47:09]} {[%emt 00:02:26]} Nxd2 {[%clk 00:39:45]} {[%emt
00:02:31]} 29. Nxd2 {[%clk 00:47:31]} {[%emt 00:00:08]} Nc4 {[%clk 00:38:54]}
{[%emt 00:01:22]} 30. Nb3 {[%clk 00:47:25]} {[%emt 00:00:36]} Kf7 {[%clk
00:38:16]} {[%emt 00:01:07]} 31. Na5 {[%clk 00:46:03]} {[%emt 00:01:53]} Rc7
{[%clk 00:35:42]} {[%emt 00:01:12]} 32. Rb8 {[%clk 00:46:23]} {[%emt 00:02:01]}
Bd7 {[%clk 00:35:40]} {[%emt 00:00:31]} 33. h4 {[%clk 00:44:28]} {[%emt
00:02:26]} Bg7 {[%clk 00:35:17]} {[%emt 00:00:52]} 34. h5 {[%clk 00:43:32]}
{[%emt 00:01:27]} f5 {[%clk 00:33:25]} {[%emt 00:02:22]} 35. hxg6+ {[%clk
00:43:01]} {[%emt 00:01:02]} hxg6 {[%clk 00:33:52]} {[%emt 00:00:02]} 36. Be2
{[%clk 00:42:09]} {[%emt 00:01:22]} e6 {[%clk 00:30:45]} {[%emt 00:03:38]} 37.
g4 {[%clk 00:41:15]} {[%emt 00:01:23]} Bh6 {[%clk 00:27:13]} {[%emt 00:04:03]}
38. gxf5 {[%clk 00:39:46]} {[%emt 00:01:59]} gxf5 {[%clk 00:27:19]} {[%emt
00:00:24]} 39. Kg2 {[%clk 00:38:26]} {[%emt 00:01:50]} Kf6 {[%clk 00:23:42]}
{[%emt 00:04:04]} 40. Kf1 {[%clk 00:32:31]} {[%emt 00:06:26]} Rc8 {[%clk
00:19:00]} {[%emt 00:05:13]} 41. Rb7 {[%clk 00:32:15]} {[%emt 00:00:46]} Be8
{[%clk 00:19:17]} {[%emt 00:00:13]} 42. Ke1 {[%clk 00:28:34]} {[%emt 00:04:11]}
f4 {[%clk 00:18:30]} {[%emt 00:01:17]} 43. Rh7 {[%clk 00:27:36]} {[%emt
00:01:29]} Bg7 {[%clk 00:17:23]} {[%emt 00:01:35]} 44. Be7+ {[%clk 00:24:10]}
{[%emt 00:03:57]} Kxe7 {[%clk 00:17:22]} {[%emt 00:00:31]} 45. Rxg7+ {[%clk
00:24:38]} {[%emt 00:00:02]} Kf6 {[%clk 00:17:33]} {[%emt 00:00:20]} 46. Rg8
{[%clk 00:23:23]} {[%emt 00:01:45]} fxe3 {[%clk 00:16:52]} {[%emt 00:01:10]} 47.
fxe3 {[%clk 00:23:25]} {[%emt 00:00:29]} Nxe3 {[%clk 00:15:15]} {[%emt
00:02:07]} 48. Bxb5 {[%clk 00:22:25]} {[%emt 00:01:29]} Bd7 {[%clk 00:15:29]}
{[%emt 00:00:16]} 49. Rxc8 {[%clk 00:22:30]} {[%emt 00:00:26]} Bxc8 {[%clk
00:15:54]} {[%emt 00:00:05]} 50. Ba4 {[%clk 00:19:09]} {[%emt 00:03:50]} e5
{[%clk 00:14:41]} {[%emt 00:01:43]} 51. b5 {[%clk 00:18:07]} {[%emt 00:01:32]}
Nc4 {[%clk 00:12:56]} {[%emt 00:02:15]} 52. Nc6 {[%clk 00:14:26]} {[%emt
00:04:11]} exd4 {[%clk 00:12:47]} {[%emt 00:00:39]} 53. Nxd4 {[%clk 00:11:10]}
{[%emt 00:03:46]} Ke5 {[%clk 00:12:42]} {[%emt 00:00:35]} 54. Nf3+ {[%clk
00:10:30]} {[%emt 00:01:10]} 1/2-1/2

[Event "Goteborg Open 2024"]
[Site "Goteborgs Schackcentrum, Vegatan 20, Gothenburg, Sweden"]
[Date "2024.08.03"]
[Round "6.2"]
[White "Eriksson, Kristian"]
[Black "Wesslen, Ulf"]
[Result "1/2-1/2"]
[TimeControl "15 minutes + 5 seconds per move from move one (Round 1 - 4) / 90 minutes + 30 seconds per move from move one (Round 5 - 8)"]
[WhiteFideId "1705172"]
[BlackFideId "1705199"]
[WhiteElo "2064"]
[BlackElo "1953"]

1. e4 {[%clk 01:30:54]} {[%emt 00:00:05]} e6 {[%clk 01:30:48]} {[%emt
00:00:13]} 2. d4 {[%clk 01:31:01]} {[%emt 00:00:23]} d5 {[%clk 01:31:01]}
{[%emt 00:00:17]} 3. Nc3 {[%clk 01:31:06]} {[%emt 00:00:25]} Bb4 {[%clk
01:30:58]} {[%emt 00:00:32]} 4. e5 {[%clk 01:31:00]} {[%emt 00:00:35]} c5
{[%clk 01:30:54]} {[%emt 00:00:35]} 5. Bd2 {[%clk 01:30:55]} {[%emt 00:00:34]}
cxd4 {[%clk 01:27:53]} {[%emt 00:03:32]} 6. Nb5 {[%clk 01:30:30]} {[%emt
00:00:55]} Be7 {[%clk 01:26:55]} {[%emt 00:01:28]} 7. Qg4 {[%clk 01:27:13]}
{[%emt 00:03:46]} Kf8 {[%clk 01:25:18]} {[%emt 00:02:08]} 8. Nf3 {[%clk
01:23:26]} {[%emt 00:04:17]} Nc6 {[%clk 01:23:49]} {[%emt 00:01:59]} 9. Bd3
{[%clk 01:15:32]} {[%emt 00:08:24]} Nb4 {[%clk 01:19:04]} {[%emt 00:05:15]} 10.
O-O {[%clk 01:13:42]} {[%emt 00:02:20]} Nxd3 {[%clk 01:18:07]} {[%emt
00:01:27]} 11. cxd3 {[%clk 01:13:59]} {[%emt 00:00:13]} Bd7 {[%clk 01:16:16]}
{[%emt 00:02:21]} 12. Nbxd4 {[%clk 01:13:51]} {[%emt 00:00:38]} h5 {[%clk
01:11:27]} {[%emt 00:05:19]} 13. Qf4 {[%clk 01:10:12]} {[%emt 00:04:08]} Nh6
{[%clk 01:08:26]} {[%emt 00:03:32]} 14. h4 {[%clk 01:07:34]} {[%emt 00:03:08]}
Nf5 {[%clk 01:04:42]} {[%emt 00:04:14]} 15. Nxf5 {[%clk 01:06:21]} {[%emt
00:01:44]} exf5 {[%clk 01:05:03]} {[%emt 00:00:08]} 16. Bb4 {[%clk 01:05:05]}
{[%emt 00:01:46]} Rh6 {[%clk 01:02:35]} {[%emt 00:02:57]} 17. Bxe7+ {[%clk
01:00:57]} {[%emt 00:04:40]} Qxe7 {[%clk 01:02:28]} {[%emt 00:00:36]} 18. Nd4
{[%clk 01:00:36]} {[%emt 00:00:52]} Rg6 {[%clk 00:57:17]} {[%emt 00:05:40]} 19.
Nxf5 {[%clk 00:54:23]} {[%emt 00:06:43]} Bxf5 {[%clk 00:52:01]} {[%emt
00:05:46]} 20. Qxf5 {[%clk 00:54:38]} {[%emt 00:00:14]} Qxh4 {[%clk 00:51:16]}
{[%emt 00:01:16]} 21. Rac1 {[%clk 00:51:52]} {[%emt 00:03:16]} Qd8 {[%clk
00:47:51]} {[%emt 00:03:55]} 22. Qxh5 {[%clk 00:42:13]} {[%emt 00:10:10]} Kg8
{[%clk 00:47:09]} {[%emt 00:01:11]} 23. g3 {[%clk 00:36:31]} {[%emt 00:06:12]}
Qd7 {[%clk 00:44:07]} {[%emt 00:03:32]} 24. Rc5 {[%clk 00:30:37]} {[%emt
00:06:23]} b6 {[%clk 00:36:31]} {[%emt 00:08:06]} 25. Rc2 {[%clk 00:28:27]}
{[%emt 00:02:40]} Rc8 {[%clk 00:28:10]} {[%emt 00:08:53]} 26. Rfc1 {[%clk
00:18:49]} {[%emt 00:10:07]} Rxc2 {[%clk 00:24:36]} {[%emt 00:04:03]} 27. Rxc2
{[%clk 00:19:16]} {[%emt 00:00:04]} Rh6 {[%clk 00:20:41]} {[%emt 00:04:25]} 28.
Qf3 {[%clk 00:19:19]} {[%emt 00:00:26]} Rc6 {[%clk 00:19:34]} {[%emt 00:01:38]}
29. Rxc6 {[%clk 00:18:01]} {[%emt 00:01:49]} Qxc6 {[%clk 00:19:56]} {[%emt
00:00:07]} 30. Kg2 {[%clk 00:14:05]} {[%emt 00:04:26]} Kf8 {[%clk 00:18:01]}
{[%emt 00:02:24]} 31. g4 {[%clk 00:13:28]} {[%emt 00:01:07]} Ke8 {[%clk
00:17:51]} {[%emt 00:00:40]} 32. Kg3 {[%clk 00:11:57]} {[%emt 00:02:02]} Qb5
{[%clk 00:16:26]} {[%emt 00:01:55]} 33. b3 {[%clk 00:08:44]} {[%emt 00:03:44]}
a5 {[%clk 00:15:40]} {[%emt 00:01:15]} 34. g5 {[%clk 00:06:34]} {[%emt
00:02:41]} Qc5 {[%clk 00:14:55]} {[%emt 00:01:14]} 35. Qf5 {[%clk 00:05:03]}
{[%emt 00:02:00]} 1/2-1/2

[Event "Goteborg Open 2024"]
[Site "Goteborgs Schackcentrum, Vegatan 20, Gothenburg, Sweden"]
[Date "2024.08.03"]
[Round "6.3"]
[White "Wickstrom, Carina"]
[Black "Degerfeldt, Sven"]
[Result "1-0"]
[TimeControl "15 minutes + 5 seconds per move from move one (Round 1 - 4) / 90 minutes + 30 seconds per move from move one (Round 5 - 8)"]
[WhiteFideId "1743201"]
[BlackFideId "1717430"]
[WhiteElo "2013"]
[BlackElo "1902"]

1. Nf3 {[%clk 01:30:56]} {[%emt 00:00:03]} Nf6 {[%clk 01:30:48]} {[%emt
00:00:13]} 2. g3 {[%clk 01:31:23]} {[%emt 00:00:03]} c5 {[%clk 01:30:34]}
{[%emt 00:00:43]} 3. Bg2 {[%clk 01:31:45]} {[%emt 00:00:07]} Nc6 {[%clk
01:30:49]} {[%emt 00:00:16]} 4. O-O {[%clk 01:30:22]} {[%emt 00:01:54]} d5
{[%clk 01:30:27]} {[%emt 00:00:50]} 5. d4 {[%clk 01:30:34]} {[%emt 00:00:20]}
cxd4 {[%clk 01:21:01]} {[%emt 00:09:55]} 6. Nxd4 {[%clk 01:30:58]} {[%emt
00:00:07]} e5 {[%clk 01:20:25]} {[%emt 00:01:05]} 7. Nxc6 {[%clk 01:31:25]}
{[%emt 00:00:04]} bxc6 {[%clk 01:20:45]} {[%emt 00:00:09]} 8. c4 {[%clk
01:31:32]} {[%emt 00:00:23]} Be6 {[%clk 01:18:38]} {[%emt 00:02:36]} 9. Nc3
{[%clk 01:31:43]} {[%emt 00:00:21]} Qd7 {[%clk 01:16:40]} {[%emt 00:02:27]} 10.
cxd5 {[%clk 01:22:07]} {[%emt 00:10:06]} cxd5 {[%clk 01:17:01]} {[%emt
00:00:09]} 11. Bg5 {[%clk 01:22:12]} {[%emt 00:00:24]} Rd8 {[%clk 01:17:08]}
{[%emt 00:00:23]} 12. Bxf6 {[%clk 01:12:55]} {[%emt 00:09:49]} gxf6 {[%clk
01:17:33]} {[%emt 00:00:04]} 13. Qd3 {[%clk 01:09:37]} {[%emt 00:03:49]} Be7
{[%clk 01:17:03]} {[%emt 00:00:59]} 14. Rfd1 {[%clk 01:09:03]} {[%emt
00:01:04]} O-O {[%clk 01:15:35]} {[%emt 00:01:58]} 15. Nxd5 {[%clk 01:08:35]}
{[%emt 00:00:59]} Bxd5 {[%clk 01:11:01]} {[%emt 00:05:03]} 16. Bxd5 {[%clk
01:06:47]} {[%emt 00:02:18]} Qg4 {[%clk 01:10:43]} {[%emt 00:00:49]} 17. Qe3
{[%clk 01:03:44]} {[%emt 00:03:32]} Rd7 {[%clk 00:59:47]} {[%emt 00:11:26]} 18.
Bf3 {[%clk 00:56:43]} {[%emt 00:07:32]} Qe6 {[%clk 00:59:38]} {[%emt 00:00:38]}
19. Rxd7 {[%clk 00:50:58]} {[%emt 00:06:16]} Qxd7 {[%clk 00:59:54]} {[%emt
00:00:13]} 20. Rc1 {[%clk 00:50:00]} {[%emt 00:01:28]} Rb8 {[%clk 00:59:12]}
{[%emt 00:01:13]} 21. b3 {[%clk 00:49:40]} {[%emt 00:00:50]} Bf8 {[%clk
00:53:45]} {[%emt 00:05:57]} 22. Rc4 {[%clk 00:48:27]} {[%emt 00:01:42]} Bg7
{[%clk 00:50:32]} {[%emt 00:03:42]} 23. Ra4 {[%clk 00:42:37]} {[%emt 00:06:22]}
Rc8 {[%clk 00:47:52]} {[%emt 00:03:10]} 24. Rxa7 {[%clk 00:38:56]} {[%emt
00:04:10]} Qd1+ {[%clk 00:47:47]} {[%emt 00:00:35]} 25. Kg2 {[%clk 00:39:20]}
{[%emt 00:00:06]} Rc1 {[%clk 00:48:01]} {[%emt 00:00:16]} 26. Kh3 {[%clk
00:39:31]} {[%emt 00:00:19]} Rc8 {[%clk 00:46:57]} {[%emt 00:01:33]} 27. Ra8
{[%clk 00:37:02]} {[%emt 00:03:00]} Rxa8 {[%clk 00:46:17]} {[%emt 00:01:11]} 28.
Bxa8 {[%clk 00:37:27]} {[%emt 00:00:05]} f5 {[%clk 00:44:14]} {[%emt 00:02:28]}
29. Kg2 {[%clk 00:34:43]} {[%emt 00:03:18]} Qd6 {[%clk 00:43:20]} {[%emt
00:01:24]} 30. a4 {[%clk 00:33:06]} {[%emt 00:02:07]} Bh6 {[%clk 00:37:38]}
{[%emt 00:06:11]} 31. Qc3 {[%clk 00:32:34]} {[%emt 00:01:02]} Qe6 {[%clk
00:36:56]} {[%emt 00:01:12]} 32. a5 {[%clk 00:31:01]} {[%emt 00:02:05]} e4
{[%clk 00:36:36]} {[%emt 00:00:48]} 33. Bb7 {[%clk 00:30:36]} {[%emt 00:00:56]}
Bf8 {[%clk 00:35:35]} {[%emt 00:01:31]} 34. a6 {[%clk 00:30:10]} {[%emt
00:00:55]} Qb6 {[%clk 00:34:36]} {[%emt 00:01:29]} 35. Qc8 {[%clk 00:29:33]}
{[%emt 00:01:07]} Qc5 {[%clk 00:33:57]} {[%emt 00:01:09]} 36. Qb8 {[%clk
00:28:54]} {[%emt 00:01:10]} e3 {[%clk 00:33:02]} {[%emt 00:01:25]} 37. a7
{[%clk 00:28:07]} {[%emt 00:01:17]} exf2 {[%clk 00:32:46]} {[%emt 00:00:46]} 38.
a8=Q {[%clk 00:28:16]} {[%emt 00:00:22]} 1-0